fUST/lending_fUST_20250825
["ID","MTS","AMOUNT","RATE_DAILY","PERIOD"]
[381115655,1756054240695,-6876.48442268,0.0004909,4]
[381115656,1756054241438,-150.352,0.00044886,2]
[381115657,1756054241447,-7918.61214959,0.0004909,4]
[381115665,1756054329120,376.22310801,0.00027,3]
[381115667,1756054386188,160.950763,0.00013699,2]
[381115668,1756054584006,185.26407776,0.00026869,2]
[381115670,1756054693657,480.0,0.00027,7]
[381115671,1756054715041,5000.0,0.00027,2]
[381115672,1756054731002,1947.92097698,0.00027,2]
[381115716,1756055431990,-300.0,0.00027699,2]
[381115718,1756055432000,-7635.5577511,0.000277,3]
[381115720,1756055432010,-150.56,0.00027742,15]
[381115722,1756055432020,-150.56,0.00027842,15]
[381115724,1756055432030,-150.56516545,0.00027942,15]
[381115726,1756055432041,-500.0,0.00028308,2]
[381115728,1756055432052,-200.0,0.00029028,120]
[381115730,1756055432061,-420.0,0.00029924,2]
[381115732,1756055432071,-160.0,0.0003019,2]
[381115734,1756055432081,-160.43447877,0.00030421,2]
[381115737,1756055432090,-151.82655371,0.00030552,120]
[381115740,1756055432100,-1000.0,0.00030552,2]
[381115743,1756055432112,-1000.0,0.00030552,2]
[381115745,1756055432122,-1000.0,0.00030552,2]
[381115747,1756055432131,-1000.0,0.00030552,2]
[381115749,1756055432141,-1000.0,0.00030552,2]
[381115751,1756055432152,-1000.0,0.00030552,2]
[381115753,1756055432162,-1000.0,0.00030552,2]
[381115755,1756055432172,-588.9,0.00030552,2]
[381115757,1756055432182,-200.0,0.00030929,120]
[381115759,1756055432191,-153.0,0.00031,120]
[381115761,1756055432202,-200.0,0.00031721,120]
[381115763,1756055432211,-200.0,0.00032145,120]
[381115765,1756055432220,-587.0,0.00032328,2]
[381115767,1756055432230,-500.0,0.00032876,120]
[381115769,1756055432238,-268.0183458,0.00033096,30]
[381115771,1756055432247,-153.0,0.000337,120]
[381115773,1756055432257,-200.0,0.00033971,120]
[381115775,1756055432266,-500.0,0.00034246,120]
[381115776,1756055432275,-160.0,0.00034389,2]
[381115777,1756055432284,-269.0,0.00034925,2]
[381115779,1756055432293,-260.0,0.00034937,2]
[381115781,1756055432302,-250.64421187,0.00035287,2]
[381115783,1756055432311,-1478.97083694,0.00035481,120]
[381115785,1756055432321,-360.0,0.00035485,2]
[381115787,1756055432332,-500.0,0.00035616,120]
[381115789,1756055432341,-200.0,0.00036033,2]
[381115791,1756055432350,-153.0,0.000364,120]
[381115793,1756055432359,-500.0,0.00036986,120]
[381115795,1756055432368,-500.0,0.00038356,120]
[381115797,1756055432378,-500.0,0.00038387,7]
[381115799,1756055432387,-153.0,0.000392,120]
[381115801,1756055432396,-187.024,0.00039726,55]
[381115803,1756055432406,-500.0,0.00039726,120]
[381115805,1756055432415,-8064.94486638,0.00039773,10]
[381115807,1756055432425,-200.0,0.00040205,120]
[381115809,1756055432434,-500.0,0.00040278,5]
[381115811,1756055432443,-500.0,0.00041095,120]
[381115813,1756055432453,-153.0,0.000419,120]
[381115815,1756055432462,-500.0,0.00042398,30]
[381115817,1756055432473,-500.0,0.00042465,120]
[381115819,1756055432482,-200.0,0.00042648,120]
[381115821,1756055432491,-500.0,0.00043835,120]
[381115823,1756055432501,-153.0,0.000446,120]
[381115825,1756055432510,-500.0,0.0004463,30]
[381115827,1756055432520,-194.678,0.00044886,2]
[381115829,1756055432530,-500.0,0.00045205,120]
[381115831,1756055432540,-500.0,0.00046575,120]
[381115834,1756055432552,-160.0,0.00046609,2]
[381115836,1756055432562,-154.934334,0.00046659,20]
[381115838,1756055432572,-973.0,0.00046712,2]
[381115840,1756055432582,-2155.0,0.00046712,2]
[381115842,1756055432591,-637.0,0.00046712,2]
[381115844,1756055432600,-408.0,0.00046712,2]
[381115846,1756055432609,-500.0,0.00046979,30]
[381115848,1756055432618,-500.0,0.00047033,30]
[381115850,1756055432627,-153.0,0.000473,120]
[381115852,1756055432637,-199.0,0.00047397,30]
[381115853,1756055432646,-186.78528844,0.00047695,14]
[381115855,1756055432655,-150.0,0.00047886,2]
[381115857,1756055432664,-500.0,0.00047945,120]
[381115859,1756055432674,-199.0,0.00048082,32]
[381115861,1756055432684,-12698.53451425,0.00048699,2]
[381115863,1756055432693,-500.0,0.00048752,120]
[381115865,1756055432702,-500.0,0.00048752,120]
[381115867,1756055432711,-500.0,0.00048752,120]
[381115869,1756055432722,-500.0,0.00048752,120]
[381115871,1756055432731,-311.23122387,0.00048752,120]
[381115873,1756055432740,-371.9642711,0.00048752,120]
[381115875,1756055432749,-199.0,0.00048767,34]
[381115877,1756055432758,-759.59,0.0004879,30]
[381115879,1756055432768,-632.99,0.0004879,30]
[381115881,1756055432779,-287877.55243902,0.000488,120]
[381115883,1756055432788,-160.0,0.00048819,2]
[381115885,1756055432797,-844.67759735,0.00048835,120]
[381115887,1756055432806,-376.22310801,0.00048937,2]
[381115890,1756055432817,-217.07852671,0.0004895,2]
[381115892,1756055432826,-599.54397728,0.0004898,2]
[381115894,1756055432836,-800.0,0.0004899,120]
[381115896,1756055432845,-400.0,0.0004899,2]
[381115898,1756055432854,-844.67759735,0.0004899,10]
[381115900,1756055432864,-7413.34970347,0.0004899,10]
[381115902,1756055432873,-160.0,0.00048993,2]
[381115904,1756055432883,-199.0,0.00049,120]
[381115906,1756055432892,-199.0,0.00049,120]
[381115907,1756055432902,-961.96777229,0.00049,120]
[381115910,1756055432912,-844.67759735,0.00049004,2]
[381115911,1756055432921,-232.42214577,0.00049015,2]
[381115913,1756055432930,-500.0,0.0004904,60]
[381115915,1756055432940,-599.54397725,0.0004906,2]
[381115917,1756055432949,-24934.1455943,0.00049069,4]
[381115919,1756055432958,-248.87526453,0.00049069,4]
[381115921,1756055432968,-1751.26651898,0.00049079,120]
[381115923,1756055432982,-1751.26651898,0.00049079,120]
[381115925,1756055432991,-1751.26651898,0.00049079,120]
[381115926,1756055433000,-1751.26651898,0.00049079,120]
[381115927,1756055433010,-1751.26651898,0.00049079,120]
[381115928,1756055433021,-1751.26651898,0.00049079,120]
[381115929,1756055433031,-1751.26651898,0.00049079,120]
[381115930,1756055433041,-1751.26651898,0.00049079,120]
[381115931,1756055433051,-1751.26651898,0.00049079,120]
[381115932,1756055433060,-1751.26651898,0.00049079,120]
[381115933,1756055433070,-1751.26651898,0.00049079,120]
[381115934,1756055433080,-1751.26651898,0.00049079,120]
[381115935,1756055433089,-1751.26651898,0.00049079,120]
[381115936,1756055433098,-1751.26651898,0.00049079,120]
[381115937,1756055433107,-1751.26651898,0.00049079,120]
[381115938,1756055433117,-1751.26651898,0.00049079,120]
[381115939,1756055433127,-1751.26651898,0.00049079,120]
[381115940,1756055433137,-1751.26651898,0.00049079,120]
[381115941,1756055433147,-1751.26651898,0.00049079,120]
[381115942,1756055433160,-1751.26651898,0.00049079,120]
[381115943,1756055433170,-1751.26651898,0.00049079,120]
[381115944,1756055433180,-1773.15735045,0.00049079,120]
[381115945,1756055433189,-1773.15735045,0.00049079,120]
[381115946,1756055433199,-1773.15735045,0.00049079,120]
[381115947,1756055433209,-1773.15735045,0.00049079,120]
[381115955,1756055433387,-1773.15735045,0.00049079,120]
[381115959,1756055433452,-1773.15735045,0.00049079,120]
[381115961,1756055433462,-1773.15735045,0.00049079,120]
[381115963,1756055433471,-1773.15735045,0.00049079,120]
[381115965,1756055433482,-24934.1455943,0.0004908,4]
[381115967,1756055433492,-248.87526453,0.0004908,4]
[381115969,1756055433502,-250.0,0.00049089,4]
[381115971,1756055433511,-250.0,0.00049089,4]
[381115973,1756055433523,-250.0,0.00049089,4]
[381115975,1756055433534,-3685.21,0.0004909,30]
[381115977,1756055433543,-3071.01,0.0004909,30]
[381115979,1756055433553,-2559.17,0.0004909,30]
[381115981,1756055433563,-2132.64,0.0004909,30]
[381115983,1756055433573,-1777.2,0.0004909,30]
[381115985,1756055433583,-1481.0,0.0004909,30]
[381115987,1756055433593,-1234.17,0.0004909,30]
[381115989,1756055433605,-1028.47,0.0004909,30]
[381115991,1756055433614,-857.06,0.0004909,30]
[381115993,1756055433624,-714.22,0.0004909,30]
[381115995,1756055433633,-595.18,0.0004909,30]
[381115998,1756055433643,-495.99,0.0004909,30]
[381115999,1756055433653,-413.32,0.0004909,30]
[381116002,1756055433663,-344.43,0.0004909,30]
[381116003,1756055433673,-287.03,0.0004909,30]
[381116005,1756055433683,-239.19,0.0004909,30]
[381116007,1756055433693,-199.33,0.0004909,30]
[381116010,1756055433703,-166.1,0.0004909,30]
[381116012,1756055433713,-830.55,0.0004909,30]
[381116014,1756055433722,-157.62,0.0004909,30]
[381116016,1756055433732,-788.14,0.0004909,30]
[381116018,1756055433742,-210.16,0.0004909,30]
[381116020,1756055433753,-175.14,0.0004909,30]
[381116022,1756055433763,-566.28,0.0004909,30]
[381116024,1756055433773,-1312.58,0.0004909,30]
[381116026,1756055433782,-1093.81,0.0004909,30]
[381116028,1756055433793,-911.51,0.0004909,30]
[381116030,1756055433804,-844.67759735,0.0004909,30]
[381116032,1756055433814,-149604.873566,0.0004909,4]
[381116034,1756055433823,-1493.25158718,0.0004909,4]
[381116036,1756055433833,-160.67,0.000491,14]
[381116038,1756055433842,-4685.26,0.000491,14]
[381116040,1756055433852,-2990.25,0.000491,7]
[381116042,1756055433862,-8115.87,0.000491,14]
[381116044,1756055433872,-599.54397725,0.0004914,2]
[381116046,1756055433882,-7413.34970345,0.00049145,10]
[381116048,1756055433894,-200.0,0.0004919,3]
[381116050,1756055433904,-200.0,0.0004919,5]
[381116052,1756055433913,-200.0,0.0004919,4]
[381116054,1756055433923,-24934.1455943,0.0004919,4]
[381116056,1756055433932,-248.87526453,0.0004919,4]
[381116058,1756055433941,-11135.56557829,0.000492,120]
[381116059,1756055433952,-24934.1455943,0.00049205,4]
[381116061,1756055433961,-248.87526453,0.00049205,4]
[381116063,1756055433973,-72290.94217993,0.00049215,120]
[381116065,1756055433983,-599.54397725,0.0004922,2]
[381116067,1756055433994,-248.87526453,0.0004929,4]
[381116069,1756055434005,-1000.0,0.000493,2]
[381116071,1756055434015,-599.54397725,0.000493,2]
[381116074,1756055434025,-7413.34970345,0.000493,10]
[381116076,1756055434035,-995.50105812,0.00049305,4]
[381116078,1756055434044,-151.0,0.00049315,120]
[381116079,1756055434054,-151.0,0.00049315,120]
[381116081,1756055434063,-151.0,0.00049315,120]
[381116083,1756055434073,-281.312599,0.00049315,120]
[381116085,1756055434084,-281.312599,0.00049315,120]
[381116087,1756055434095,-281.312599,0.00049315,120]
[381116090,1756055434106,-281.312599,0.00049315,120]
[381116092,1756055434116,-151.0,0.00049315,30]
[381116094,1756055434126,-1000.0,0.00049315,120]
[381116096,1756055434138,-609.32551782,0.00049315,120]
[381116098,1756055434148,-151.0,0.00049315,120]
[381116100,1756055434159,-178.290292,0.00049315,120]
[381116102,1756055434170,-151.0,0.00049315,120]
[381116104,1756055434180,-151.0,0.00049315,120]
[381116106,1756055434189,-500.0,0.00049315,120]
[381116108,1756055434199,-500.0,0.00049315,120]
[381116110,1756055434209,-500.0,0.00049315,120]
[381116112,1756055434218,-453.90997104,0.00049315,120]
[381116113,1756055434228,-151.0,0.00049315,120]
[381116116,1756055434238,-151.0,0.00049315,120]
[381116118,1756055434248,-151.0,0.00049315,120]
[381116120,1756055434258,-233.394478,0.00049315,120]
[381116122,1756055434268,-151.0,0.00049315,120]
[381116124,1756055434278,-182.328358,0.00049315,120]
[381116126,1756055434287,-151.0,0.00049315,120]
[381116128,1756055434299,-196.246994,0.00049315,120]
[381116130,1756055434309,-151.0,0.00049315,120]
[381116132,1756055434318,-151.0,0.00049315,120]
[381116134,1756055434329,-151.0,0.00049315,120]
[381116136,1756055434339,-151.0,0.00049315,120]
[381116138,1756055434348,-151.0,0.00049315,120]
[381116140,1756055434357,-151.0,0.00049315,120]
[381116142,1756055434367,-151.0,0.00049315,120]
[381116144,1756055434376,-151.0,0.00049315,120]
[381116146,1756055434386,-151.0,0.00049315,120]
[381116148,1756055434396,-151.0,0.00049315,120]
[381116150,1756055434407,-151.0,0.00049315,120]
[381116152,1756055434416,-500.0,0.00049315,120]
[381116154,1756055434425,-500.0,0.00049315,120]
[381116156,1756055434435,-500.0,0.00049315,120]
[381116158,1756055434445,-245.486928,0.00049315,120]
[381116160,1756055434454,-151.0,0.00049315,120]
[381116162,1756055434464,-500.0,0.00049315,120]
[381116164,1756055434474,-195.75744067,0.00049315,120]
[381116166,1756055434483,-151.0,0.00049315,120]
[381116168,1756055434493,-151.0,0.00049315,120]
[381116170,1756055434503,-151.0,0.00049315,120]
[381116172,1756055434513,-151.0,0.00049315,120]
[381116173,1756055434533,-151.0,0.00049315,120]
[381116174,1756055434542,-151.0,0.00049315,120]
[381116175,1756055434552,-199.088,0.00049315,120]
[381116176,1756055434561,-151.136049,0.00049315,120]
[381116177,1756055434571,-151.136049,0.00049315,120]
[381116178,1756055434580,-151.136049,0.00049315,120]
[381116179,1756055434589,-151.136049,0.00049315,120]
[381116180,1756055434598,-260.649829,0.00049315,120]
[381116181,1756055434607,-260.649829,0.00049315,120]
[381116182,1756055434616,-260.649829,0.00049315,120]
[381116183,1756055434627,-260.649829,0.00049315,120]
[381116184,1756055434636,-151.0,0.00049315,120]
[381116185,1756055434645,-151.0,0.00049315,120]
[381116186,1756055434655,-151.0,0.00049315,120]
[381116187,1756055434664,-151.0,0.00049315,120]
[381116188,1756055434673,-151.0,0.00049315,120]
[381116189,1756055434682,-190.310168,0.00049315,120]
[381116190,1756055434691,-190.310168,0.00049315,120]
[381116191,1756055434699,-500.0,0.00049315,120]
[381116192,1756055434709,-190.310168,0.00049315,120]
[381116193,1756055434718,-190.310168,0.00049315,120]
[381116194,1756055434727,-151.0,0.00049315,120]
[381116195,1756055434737,-151.0,0.00049315,120]
[381116196,1756055434746,-151.0,0.00049315,120]
[381116197,1756055434755,-151.0,0.00049315,120]
[381116198,1756055434765,-255.809753,0.00049315,120]
[381116199,1756055434774,-151.0,0.00049315,120]
[381116200,1756055434783,-255.809753,0.00049315,120]
[381116201,1756055434793,-151.0,0.00049315,120]
[381116202,1756055434802,-255.809753,0.00049315,120]
[381116203,1756055434811,-255.809753,0.00049315,120]
[381116204,1756055434820,-231.01721,0.00049315,120]
[381116205,1756055434832,-600.504233,0.00049315,30]
[381116206,1756055434842,-600.504233,0.00049315,30]
[381116207,1756055434851,-600.504233,0.00049315,30]
[381116208,1756055434860,-151.0,0.00049315,120]
[381116209,1756055434869,-600.504233,0.00049315,30]
[381116210,1756055434879,-151.0,0.00049315,120]
[381116211,1756055434888,-151.0,0.00049315,120]
[381116212,1756055434897,-151.0,0.00049315,120]
[381116213,1756055434907,-151.0,0.00049315,120]
[381116214,1756055434916,-151.0,0.00049315,120]
[381116215,1756055434926,-193.179097,0.00049315,120]
[381116216,1756055434935,-151.0,0.00049315,120]
[381116217,1756055434944,-151.0,0.00049315,120]
[381116218,1756055434954,-151.0,0.00049315,120]
[381116219,1756055434963,-151.0,0.00049315,120]
[381116220,1756055434975,-151.0,0.00049315,120]
[381116221,1756055434984,-151.0,0.00049315,120]
[381116222,1756055434994,-151.0,0.00049315,120]
[381116223,1756055435003,-151.0,0.00049315,120]
[381116224,1756055435014,-151.0,0.00049315,120]
[381116225,1756055435023,-208.998097,0.00049315,120]
[381116226,1756055435032,-151.0,0.00049315,120]
[381116227,1756055435046,-151.0,0.00049315,120]
[381116228,1756055435065,-151.0,0.00049315,120]
[381116229,1756055435079,-151.0,0.00049315,120]
[381116230,1756055435089,-151.0,0.00049315,120]
[381116231,1756055435098,-151.0,0.00049315,120]
[381116232,1756055435107,-151.0,0.00049315,15]
[381116233,1756055435117,-151.0,0.00049315,15]
[381116234,1756055435127,-151.0,0.00049315,15]
[381116235,1756055435136,-151.0,0.00049315,15]
[381116236,1756055435145,-151.0,0.00049315,120]
[381116237,1756055435155,-151.0,0.00049315,120]
[381116238,1756055435164,-7504.31,0.00049315,120]
[381116239,1756055435173,-7504.31,0.00049315,120]
[381116240,1756055435183,-7504.31,0.00049315,120]
[381116241,1756055435192,-7504.31,0.00049315,120]
[381116242,1756055435201,-7504.31,0.00049315,120]
[381116243,1756055435211,-7504.31,0.00049315,120]
[381116244,1756055435221,-7504.31,0.00049315,120]
[381116245,1756055435235,-7504.31,0.00049315,120]
[381116246,1756055435244,-7504.31,0.00049315,120]
[381116247,1756055435253,-7504.31,0.00049315,120]
[381116248,1756055435262,-7504.31,0.00049315,120]
[381116249,1756055435271,-7504.31,0.00049315,120]
[381116250,1756055435281,-7504.31,0.00049315,120]
[381116251,1756055435290,-7504.31,0.00049315,120]
[381116252,1756055435299,-7504.31,0.00049315,120]
[381116253,1756055435308,-7504.31,0.00049315,120]
[381116254,1756055435317,-7504.31,0.00049315,120]
[381116255,1756055435326,-7504.31,0.00049315,120]
[381116256,1756055435336,-7504.31,0.00049315,120]
[381116257,1756055435345,-7504.31,0.00049315,120]
[381116258,1756055435354,-7504.31,0.00049315,120]
[381116259,1756055435363,-7504.31,0.00049315,120]
[381116260,1756055435372,-7504.31,0.00049315,120]
[381116261,1756055435381,-7504.5,0.00049315,120]
[381116262,1756055435391,-221.825483,0.00049315,120]
[381116263,1756055435401,-629.97762,0.00049315,120]
[381116264,1756055435411,-221.825483,0.00049315,120]
[381116265,1756055435420,-300.0,0.00049315,120]
[381116266,1756055435429,-153.0,0.00049315,30]
[381116267,1756055435438,-247.3189471,0.00049315,30]
[381116269,1756055435447,-161.0055628,0.00049315,30]
[381116271,1756055435457,-1053.4701353,0.00049315,30]
[381116273,1756055435466,-161.0055628,0.00049315,30]
[381116275,1756055435475,-160.4463284,0.00049315,30]
[381116277,1756055435484,-166.13416733,0.00049322,30]
[381116279,1756055435493,-500.0,0.00049373,2]
[381116281,1756055435503,-278.89879357,0.00049373,7]
[381116283,1756055435512,-200.0,0.00049373,10]
[381116285,1756055435521,-500.0,0.00049373,10]
[381116287,1756055435530,-500.0,0.00049373,10]
[381116289,1756055435539,-500.0,0.00049373,10]
[381116291,1756055435548,-1244.37632265,0.0004939,4]
[381116293,1756055435558,-1843.4849215,0.000494,61]
[381116295,1756055435567,-1000000.0,0.000494,120]
[381116297,1756055435576,-378748.97390828,0.000494,120]
[381116299,1756055435586,-151.0,0.000494,120]
[381116301,1756055435595,-151.0,0.000494,120]
[381116303,1756055435605,-151.0,0.000494,120]
[381116305,1756055435614,-251.8,0.000494,120]
[381116307,1756055435623,-281.312599,0.000494,120]
[381116309,1756055435632,-281.312599,0.000494,120]
[381116311,1756055435641,-281.312599,0.000494,120]
[381116313,1756055435650,-281.312599,0.000494,120]
[381116315,1756055435659,-281.312599,0.000494,120]
[381116317,1756055435668,-281.312599,0.000494,120]
[381116319,1756055435677,-281.312599,0.000494,120]
[381116321,1756055435686,-281.312599,0.000494,120]
[381116323,1756055435697,-151.0,0.000494,30]
[381116325,1756055435706,-151.0,0.000494,30]
[381116327,1756055435715,-151.0,0.000494,120]
[381116329,1756055435725,-151.0,0.000494,120]
[381116331,1756055435735,-151.0,0.000494,120]
[381116333,1756055435744,-151.0,0.000494,120]
[381116335,1756055435753,-151.0,0.000494,120]
[381116337,1756055435762,-151.0,0.000494,120]
[381116339,1756055435772,-151.0,0.000494,120]
[381116341,1756055435782,-151.0,0.000494,120]
[381116343,1756055435791,-151.0,0.000494,120]
[381116345,1756055435800,-151.0,0.000494,120]
[381116347,1756055435810,-151.0,0.000494,120]
[381116350,1756055435823,-151.0,0.000494,120]
[381116352,1756055435833,-151.0,0.000494,120]
[381116354,1756055435843,-151.0,0.000494,120]
[381116356,1756055435853,-151.0,0.000494,120]
[381116358,1756055435862,-151.0,0.000494,120]
[381116359,1756055435871,-151.0,0.000494,120]
[381116361,1756055435880,-151.0,0.000494,120]
[381116363,1756055435890,-151.0,0.000494,120]
[381116365,1756055435899,-151.0,0.000494,120]
[381116367,1756055435909,-151.0,0.000494,120]
[381116369,1756055435919,-221.488623,0.000494,120]
[381116371,1756055435928,-151.0,0.000494,120]
[381116373,1756055435937,-151.0,0.000494,120]
[381116375,1756055435947,-151.0,0.000494,120]
[381116377,1756055435956,-151.0,0.000494,120]
[381116379,1756055435966,-151.0,0.000494,120]
[381116380,1756055435980,-151.0,0.000494,120]
[381116382,1756055435989,-151.0,0.000494,120]
[381116384,1756055435999,-151.0,0.000494,120]
[381116386,1756055436009,-151.0,0.000494,120]
[381116388,1756055436019,-151.0,0.000494,120]
[381116390,1756055436029,-193.282244,0.000494,120]
[381116392,1756055436039,-151.0,0.000494,120]
[381116394,1756055436050,-151.0,0.000494,120]
[381116396,1756055436059,-151.0,0.000494,120]
[381116398,1756055436069,-151.0,0.000494,120]
[381116400,1756055436078,-151.0,0.000494,120]
[381116402,1756055436087,-151.0,0.000494,120]
[381116404,1756055436096,-223.340255,0.000494,120]
[381116406,1756055436106,-151.0,0.000494,120]
[381116408,1756055436117,-151.0,0.000494,120]
[381116410,1756055436127,-151.136049,0.000494,120]
[381116412,1756055436137,-151.136049,0.000494,120]
[381116414,1756055436147,-151.136049,0.000494,120]
[381116416,1756055436156,-151.136049,0.000494,120]
[381116418,1756055436165,-151.136049,0.000494,120]
[381116420,1756055436175,-151.136049,0.000494,120]
[381116421,1756055436184,-151.136049,0.000494,120]
[381116422,1756055436193,-151.136049,0.000494,120]
[381116423,1756055436203,-260.649829,0.000494,120]
[381116424,1756055436212,-260.649829,0.000494,120]
[381116425,1756055436222,-260.649829,0.000494,120]
[381116426,1756055436231,-260.649829,0.000494,120]
[381116427,1756055436240,-260.649829,0.000494,120]
[381116428,1756055436253,-260.649829,0.000494,120]
[381116429,1756055436262,-260.649829,0.000494,120]
[381116430,1756055436271,-260.649829,0.000494,120]
[381116431,1756055436281,-151.0,0.000494,120]
[381116432,1756055436291,-151.0,0.000494,120]
[381116433,1756055436300,-151.0,0.000494,120]
[381116434,1756055436310,-151.0,0.000494,120]
[381116435,1756055436319,-151.0,0.000494,120]
[381116436,1756055436328,-190.310168,0.000494,120]
[381116437,1756055436338,-190.310168,0.000494,120]
[381116438,1756055436347,-190.310168,0.000494,120]
[381116439,1756055436358,-190.310168,0.000494,120]
[381116440,1756055436367,-190.310168,0.000494,120]
[381116441,1756055436376,-190.310168,0.000494,120]
[381116442,1756055436386,-190.310168,0.000494,120]
[381116443,1756055436395,-190.310168,0.000494,120]
[381116444,1756055436404,-151.0,0.000494,120]
[381116445,1756055436414,-151.0,0.000494,120]
[381116446,1756055436423,-151.0,0.000494,120]
[381116447,1756055436432,-151.0,0.000494,120]
[381116448,1756055436441,-151.0,0.000494,120]
[381116449,1756055436451,-151.0,0.000494,120]
[381116450,1756055436460,-151.0,0.000494,120]
[381116451,1756055436469,-151.0,0.000494,120]
[381116452,1756055436478,-255.809753,0.000494,120]
[381116453,1756055436487,-255.809753,0.000494,120]
[381116454,1756055436497,-151.0,0.000494,120]
[381116456,1756055436507,-151.0,0.000494,120]
[381116458,1756055436516,-255.809753,0.000494,120]
[381116460,1756055436525,-255.809753,0.000494,120]
[381116462,1756055436535,-226.291144,0.000494,120]
[381116464,1756055436544,-255.809753,0.000494,120]
[381116466,1756055436553,-255.809753,0.000494,120]
[381116468,1756055436563,-255.809753,0.000494,120]
[381116470,1756055436573,-255.809753,0.000494,120]
[381116472,1756055436582,-600.504233,0.000494,30]
[381116474,1756055436592,-600.504233,0.000494,30]
[381116476,1756055436601,-600.504233,0.000494,30]
[381116478,1756055436610,-600.504233,0.000494,30]
[381116480,1756055436620,-600.504233,0.000494,30]
[381116482,1756055436629,-600.504233,0.000494,30]
[381116484,1756055436639,-151.0,0.000494,120]
[381116486,1756055436649,-151.0,0.000494,120]
[381116488,1756055436660,-600.504233,0.000494,30]
[381116490,1756055436670,-600.504233,0.000494,30]
[381116492,1756055436680,-151.0,0.000494,120]
[381116494,1756055436690,-151.0,0.000494,120]
[381116496,1756055436701,-151.0,0.000494,120]
[381116498,1756055436712,-151.0,0.000494,120]
[381116500,1756055436724,-199.515746,0.000494,120]
[381116502,1756055436743,-151.0,0.000494,120]
[381116504,1756055436762,-151.0,0.000494,120]
[381116506,1756055436782,-151.0,0.000494,120]
[381116508,1756055436794,-151.0,0.000494,120]
[381116510,1756055436805,-151.0,0.000494,120]
[381116512,1756055436814,-151.0,0.000494,120]
[381116514,1756055436823,-151.0,0.000494,120]
[381116516,1756055436832,-151.0,0.000494,120]
[381116518,1756055436841,-151.0,0.000494,120]
[381116520,1756055436851,-151.0,0.000494,120]
[381116522,1756055436860,-151.0,0.000494,120]
[381116524,1756055436870,-151.0,0.000494,120]
[381116526,1756055436879,-151.0,0.000494,120]
[381116528,1756055436888,-151.0,0.000494,120]
[381116530,1756055436898,-151.0,0.000494,120]
[381116532,1756055436908,-151.0,0.000494,120]
[381116534,1756055436917,-151.0,0.000494,120]
[381116536,1756055436926,-151.0,0.000494,120]
[381116538,1756055436936,-151.0,0.000494,120]
[381116540,1756055436945,-151.0,0.000494,120]
[381116542,1756055436955,-151.0,0.000494,120]
[381116544,1756055436964,-151.0,0.000494,120]
[381116546,1756055436978,-151.0,0.000494,120]
[381116548,1756055436988,-151.0,0.000494,120]
[381116550,1756055436998,-151.0,0.000494,120]
[381116552,1756055437009,-151.0,0.000494,120]
[381116553,1756055437019,-151.0,0.000494,120]